[Event "Titled Tuesday Blitz October 11 Late 2022"]
[White "Gubajdullin, Alexei"]
[Black "Prieto Aranguren, Alain"]
[WhiteFideId "4141202"]
[BlackFideId "2268906"]
[WhiteElo "2200"]
[BlackElo "2209"]
[Result "1-0"]
[Round "02"]
[TimeControl "180+1"]
[Date "2022.10.12"]
[WhiteClock "0:00:04"]
[BlackClock "0:00:01"]

1. d4 {[%clk 0:02:59]}  g6 {[%clk 0:02:58]} 2. Nf3 {[%clk 0:02:54]}  Bg7 {[%clk 0:02:58]} 3. Bf4 {[%clk 0:02:53]}  c5 {[%clk 0:02:57]} 4. e3 {[%clk 0:02:52]}  Qb6 {[%clk 0:02:57]} 5. Nbd2 {[%clk 0:02:52]}  Nc6 {[%clk 0:02:54]} 6. Nc4 {[%clk 0:02:50]}  Qd8 {[%clk 0:02:43]} 7. dxc5 {[%clk 0:02:49]}  b5 {[%clk 0:02:34]} 8. cxb6 {[%clk 0:02:47]}  axb6 {[%clk 0:02:34]} 9. c3 {[%clk 0:02:44]}  b5 {[%clk 0:02:32]} 10. Nce5 {[%clk 0:02:44]}  Nxe5 {[%clk 0:02:30]} 11. Bxe5 {[%clk 0:02:43]}  Bxe5 {[%clk 0:02:28]} 12. Nxe5 {[%clk 0:02:43]}  Qa5 {[%clk 0:02:25]} 13. Qd5 {[%clk 0:02:37]}  e6 {[%clk 0:02:11]} 14. Qxb5 {[%clk 0:02:30]}  Ne7 {[%clk 0:02:00]} 15. Nc4 {[%clk 0:02:22]}  Qc7 {[%clk 0:01:50]} 16. Qb6 {[%clk 0:02:10]}  Qxb6 {[%clk 0:01:32]} 17. Nxb6 {[%clk 0:02:10]}  Rb8 {[%clk 0:01:32]} 18. Nxc8 {[%clk 0:02:09]}  Nxc8 {[%clk 0:01:32]} 19. O-O-O {[%clk 0:02:09]}  d5 {[%clk 0:01:32]} 20. h4 {[%clk 0:02:05]}  Nd6 {[%clk 0:01:31]} 21. h5 {[%clk 0:02:04]}  Ke7 {[%clk 0:01:31]} 22. Bd3 {[%clk 0:02:02]}  Rhc8 {[%clk 0:01:29]} 23. Rd2 {[%clk 0:02:00]}  Rc5 {[%clk 0:01:26]} 24. a3 {[%clk 0:02:00]}  Kf6 {[%clk 0:01:24]} 25. hxg6 {[%clk 0:01:57]}  hxg6 {[%clk 0:01:24]} 26. Rh4 {[%clk 0:01:58]}  e5 {[%clk 0:01:23]} 27. Rb4 {[%clk 0:01:57]}  Rbc8 {[%clk 0:01:21]} 28. Rb6 {[%clk 0:01:56]}  Ke7 {[%clk 0:01:20]} 29. Kb1 {[%clk 0:01:55]}  e4 {[%clk 0:01:19]} 30. Be2 {[%clk 0:01:54]}  f5 {[%clk 0:01:14]} 31. g3 {[%clk 0:01:49]}  Kd7 {[%clk 0:01:12]} 32. Rb4 {[%clk 0:01:44]}  Ke6 {[%clk 0:01:09]} 33. Rbd4 {[%clk 0:01:43]}  g5 {[%clk 0:01:04]} 34. Ka2 {[%clk 0:01:43]}  Ke5 {[%clk 0:01:02]} 35. Bd1 {[%clk 0:01:39]}  Nc4 {[%clk 0:01:00]} 36. Re2 {[%clk 0:01:38]}  Rb8 {[%clk 0:00:50]} 37. Bb3 {[%clk 0:01:34]}  Na5 {[%clk 0:00:48]} 38. Ba4 {[%clk 0:01:34]}  Nc4 {[%clk 0:00:43]} 39. Bb3 {[%clk 0:01:29]}  Na5 {[%clk 0:00:41]} 40. Bd1 {[%clk 0:01:28]}  Nc4 {[%clk 0:00:41]} 41. Rc2 {[%clk 0:01:28]}  Rcb5 {[%clk 0:00:37]} 42. Ka1 {[%clk 0:01:02]}  Nxb2 {[%clk 0:00:32]} 43. Be2 {[%clk 0:01:01]}  Rb3 {[%clk 0:00:28]} 44. Rb4 {[%clk 0:01:01]}  Nc4 {[%clk 0:00:13]} 45. Rxb8 {[%clk 0:00:54]}  Rxb8 {[%clk 0:00:10]} 46. Bxc4 {[%clk 0:00:52]}  dxc4 {[%clk 0:00:10]} 47. Rb2 {[%clk 0:00:49]}  Ra8 {[%clk 0:00:09]} 48. Ka2 {[%clk 0:00:49]}  Kd5 {[%clk 0:00:08]} 49. Rb5+ {[%clk 0:00:47]}  Ke6 {[%clk 0:00:07]} 50. Rb6+ {[%clk 0:00:40]}  Ke5 {[%clk 0:00:07]} 51. Rb4 {[%clk 0:00:29]}  Rd8 {[%clk 0:00:06]} 52. Rb2 {[%clk 0:00:29]}  Rd3 {[%clk 0:00:05]} 53. Rc2 {[%clk 0:00:28]}  Kd5 {[%clk 0:00:05]} 54. a4 {[%clk 0:00:28]}  Kc5 {[%clk 0:00:05]} 55. Ka3 {[%clk 0:00:28]}  Rd1 {[%clk 0:00:05]} 56. Ra2 {[%clk 0:00:22]}  Rc1 {[%clk 0:00:03]} 57. Kb2 {[%clk 0:00:16]}  Rf1 {[%clk 0:00:03]} 58. Ka3 {[%clk 0:00:14]}  Rc1 {[%clk 0:00:03]} 59. a5 {[%clk 0:00:13]}  Rxc3+ {[%clk 0:00:02]} 60. Kb2 {[%clk 0:00:14]}  Rb3+ {[%clk 0:00:03]} 61. Kc2 {[%clk 0:00:14]}  Rb7 {[%clk 0:00:02]} 62. a6 {[%clk 0:00:14]}  Ra7 {[%clk 0:00:02]} 63. Kc3 {[%clk 0:00:10]}  Kb5 {[%clk 0:00:02]} 64. Rb2+ {[%clk 0:00:07]}  Kc5 {[%clk 0:00:02]} 65. Ra2 {[%clk 0:00:06]}  Kb5 {[%clk 0:00:02]} 66. Ra1 {[%clk 0:00:06]}  Kc5 {[%clk 0:00:01]} 67. Ra4 {[%clk 0:00:04]}  Kb5 {[%clk 0:00:01]} 68. Rb4+ {[%clk 0:00:04]} 1-0


[Site "https://www.chess.com"]

[Event "Titled Tuesday Blitz October 11 Late 2022"]
[White "Hajiyev, Kanan"]
[Black "Haszon, David"]
[WhiteFideId "13404148"]
[BlackFideId "733610"]
[WhiteElo "2118"]
[BlackElo "2211"]
[Result "1/2-1/2"]
[Round "02"]
[TimeControl "180+1"]
[Date "2022.10.12"]
[WhiteClock "0:00:07"]
[BlackClock "0:00:14"]

1. d4 {[%clk 0:02:55]}  Nf6 {[%clk 0:03:00]} 2. Nf3 {[%clk 0:02:56]}  e6 {[%clk 0:03:00]} 3. c4 {[%clk 0:02:56]}  d5 {[%clk 0:03:00]} 4. cxd5 {[%clk 0:02:57]}  exd5 {[%clk 0:03:00]} 5. Nc3 {[%clk 0:02:57]}  c6 {[%clk 0:02:58]} 6. Bg5 {[%clk 0:02:57]}  Be7 {[%clk 0:02:56]} 7. Qc2 {[%clk 0:02:55]}  g6 {[%clk 0:02:55]} 8. e3 {[%clk 0:02:55]}  Bf5 {[%clk 0:02:55]} 9. Bd3 {[%clk 0:02:56]}  Bxd3 {[%clk 0:02:54]} 10. Qxd3 {[%clk 0:02:57]}  O-O {[%clk 0:02:52]} 11. O-O {[%clk 0:02:56]}  Nbd7 {[%clk 0:02:52]} 12. Rab1 {[%clk 0:02:56]}  Re8 {[%clk 0:02:45]} 13. Qc2 {[%clk 0:02:55]}  Nh5 {[%clk 0:02:38]} 14. Bxe7 {[%clk 0:02:51]}  Qxe7 {[%clk 0:02:39]} 15. b4 {[%clk 0:02:50]}  a6 {[%clk 0:02:39]} 16. a4 {[%clk 0:02:50]}  Qd6 {[%clk 0:02:15]} 17. b5 {[%clk 0:02:47]}  c5 {[%clk 0:02:14]} 18. dxc5 {[%clk 0:02:41]}  Qxc5 {[%clk 0:02:11]} 19. Qb3 {[%clk 0:02:22]}  Nhf6 {[%clk 0:02:04]} 20. Rfd1 {[%clk 0:02:19]}  axb5 {[%clk 0:01:53]} 21. Nxb5 {[%clk 0:01:59]}  Rec8 {[%clk 0:01:28]} 22. h3 {[%clk 0:01:55]}  b6 {[%clk 0:01:11]} 23. Qb4 {[%clk 0:01:08]}  Qxb4 {[%clk 0:01:06]} 24. Rxb4 {[%clk 0:01:09]}  Nc5 {[%clk 0:01:07]} 25. Nd6 {[%clk 0:01:00]}  Rc6 {[%clk 0:01:03]} 26. Nb5 {[%clk 0:00:49]}  Rxa4 {[%clk 0:01:04]} 27. Rxa4 {[%clk 0:00:49]}  Nxa4 {[%clk 0:01:05]} 28. Nfd4 {[%clk 0:00:49]}  Rc5 {[%clk 0:00:55]} 29. Rb1 {[%clk 0:00:47]}  Ne4 {[%clk 0:00:52]} 30. Ra1 {[%clk 0:00:39]}  Nac3 {[%clk 0:00:48]} 31. Nxc3 {[%clk 0:00:39]}  Rxc3 {[%clk 0:00:49]} 32. Ra8+ {[%clk 0:00:37]}  Kg7 {[%clk 0:00:49]} 33. g4 {[%clk 0:00:26]}  Rc1+ {[%clk 0:00:46]} 34. Kg2 {[%clk 0:00:26]}  Rb1 {[%clk 0:00:47]} 35. f3 {[%clk 0:00:19]}  Rb2+ {[%clk 0:00:47]} 36. Kg1 {[%clk 0:00:20]}  Ng5 {[%clk 0:00:43]} 37. h4 {[%clk 0:00:20]}  Ne6 {[%clk 0:00:33]} 38. Nxe6+ {[%clk 0:00:19]}  fxe6 {[%clk 0:00:33]} 39. g5 {[%clk 0:00:18]}  Re2 {[%clk 0:00:30]} 40. Rb8 {[%clk 0:00:18]}  Rxe3 {[%clk 0:00:30]} 41. Rxb6 {[%clk 0:00:19]}  Rxf3 {[%clk 0:00:28]} 42. Rxe6 {[%clk 0:00:18]}  Rf4 {[%clk 0:00:28]} 43. Re7+ {[%clk 0:00:18]}  Kg8 {[%clk 0:00:28]} 44. Rd7 {[%clk 0:00:14]}  d4 {[%clk 0:00:25]} 45. h5 {[%clk 0:00:12]}  gxh5 {[%clk 0:00:24]} 46. Kg2 {[%clk 0:00:10]}  Rg4+ {[%clk 0:00:21]} 47. Kh3 {[%clk 0:00:08]}  Re4 {[%clk 0:00:20]} 48. Kg3 {[%clk 0:00:08]}  Kh8 {[%clk 0:00:20]} 49. Kf3 {[%clk 0:00:08]}  Rg4 {[%clk 0:00:19]} 50. Rd8+ {[%clk 0:00:05]}  Kg7 {[%clk 0:00:19]} 51. Rd6 {[%clk 0:00:05]}  Rh4 {[%clk 0:00:17]} 52. Kg3 {[%clk 0:00:05]}  Re4 {[%clk 0:00:18]} 53. Kf3 {[%clk 0:00:06]}  Re3+ {[%clk 0:00:18]} 54. Kf4 {[%clk 0:00:06]}  Rd3 {[%clk 0:00:18]} 55. Ke4 {[%clk 0:00:06]}  Rg3 {[%clk 0:00:15]} 56. Kxd4 {[%clk 0:00:04]}  Rxg5 {[%clk 0:00:15]} 57. Ke4 {[%clk 0:00:05]}  Rg1 {[%clk 0:00:15]} 58. Kf4 {[%clk 0:00:05]}  h4 {[%clk 0:00:15]} 59. Rd3 {[%clk 0:00:06]}  Kg6 {[%clk 0:00:14]} 60. Rd6+ {[%clk 0:00:06]}  Kh5 {[%clk 0:00:14]} 61. Rd5+ {[%clk 0:00:06]}  Kg6 {[%clk 0:00:15]} 62. Rd6+ {[%clk 0:00:07]}  Kg7 {[%clk 0:00:15]} 63. Rd7+ {[%clk 0:00:07]}  Kg6 {[%clk 0:00:14]} 64. Rd6+ {[%clk 0:00:07]} 1/2-1/2


[Site "https://www.chess.com"]

[Event "Titled Tuesday Blitz October 11 Late 2022"]
[White "Hansen, Eric"]
[Black "Sourath Biswas"]
[WhiteFideId "2606771"]
[BlackFideId "35091484"]
[WhiteElo "2568"]
[BlackElo "2164"]
[Result "1-0"]
[Round "02"]
[TimeControl "180+1"]
[Date "2022.10.11"]
[WhiteClock "0:00:53"]
[BlackClock "0:00:02"]

1. d4 {[%clk 0:03:00]}  Nf6 {[%clk 0:03:00]} 2. Nf3 {[%clk 0:02:59]}  g6 {[%clk 0:03:00]} 3. c4 {[%clk 0:02:53]}  Bg7 {[%clk 0:03:00]} 4. Nc3 {[%clk 0:02:42]}  O-O {[%clk 0:03:01]} 5. e4 {[%clk 0:02:41]}  d6 {[%clk 0:03:01]} 6. h3 {[%clk 0:02:40]}  c5 {[%clk 0:02:05]} 7. d5 {[%clk 0:02:40]}  e6 {[%clk 0:01:55]} 8. Bd3 {[%clk 0:02:39]}  a6 {[%clk 0:01:53]} 9. a4 {[%clk 0:02:37]}  Nbd7 {[%clk 0:01:42]} 10. O-O {[%clk 0:02:34]}  e5 {[%clk 0:01:26]} 11. Ne2 {[%clk 0:02:13]}  Nh5 {[%clk 0:00:17]} 12. g4 {[%clk 0:02:12]}  Nf4 {[%clk 0:00:16]} 13. Nxf4 {[%clk 0:02:13]}  exf4 {[%clk 0:00:17]} 14. Bxf4 {[%clk 0:02:14]}  Qe7 {[%clk 0:00:17]} 15. b3 {[%clk 0:02:12]}  Bxa1 {[%clk 0:00:17]} 16. Qxa1 {[%clk 0:02:12]}  f6 {[%clk 0:00:17]} 17. Be2 {[%clk 0:02:10]}  Ne5 {[%clk 0:00:18]} 18. Nd2 {[%clk 0:02:11]}  h5 {[%clk 0:00:16]} 19. Bh6 {[%clk 0:01:49]}  Rf7 {[%clk 0:00:15]} 20. f4 {[%clk 0:01:48]}  Nd7 {[%clk 0:00:10]} 21. g5 {[%clk 0:01:42]}  Rh7 {[%clk 0:00:09]} 22. Rf3 {[%clk 0:01:38]}  Qf7 {[%clk 0:00:07]} 23. Rg3 {[%clk 0:01:37]}  Nf8 {[%clk 0:00:04]} 24. f5 {[%clk 0:01:17]}  fxg5 {[%clk 0:00:02]} 25. Bxg5 {[%clk 0:01:17]}  Qg7 {[%clk 0:00:01]} 26. Bf6 {[%clk 0:01:09]}  Qf7 {[%clk 0:00:01]} 27. Nf3 {[%clk 0:01:09]}  Rh6 {[%clk 0:00:01]} 28. Ng5 {[%clk 0:01:08]}  Qe8 {[%clk 0:00:01]} 29. Bc3 {[%clk 0:01:00]}  Nh7 {[%clk 0:00:01]} 30. Ne6 {[%clk 0:00:57]}  Bd7 {[%clk 0:00:02]} 31. Bg7 {[%clk 0:00:53]}  Qf8 {[%clk 0:00:02]} 1-0


[Site "https://www.chess.com"]

[Event "Titled Tuesday Blitz October 11 Late 2022"]
[White "Herman, Daniel"]
[Black "Luxama, Jacques Muller"]
[WhiteFideId "30935008"]
[BlackFideId "11900113"]
[WhiteElo "1897"]
[BlackElo "1931"]
[Result "1-0"]
[Round "02"]
[TimeControl "180+1"]
[Date "2022.10.12"]
[WhiteClock "0:00:40"]
[BlackClock "0:00:03"]

1. d4 {[%clk 0:03:00]}  Nf6 {[%clk 0:02:59]} 2. c4 {[%clk 0:03:01]}  g6 {[%clk 0:02:57]} 3. Nc3 {[%clk 0:03:00]}  Bg7 {[%clk 0:02:57]} 4. e4 {[%clk 0:02:59]}  d6 {[%clk 0:02:57]} 5. Nf3 {[%clk 0:02:59]}  O-O {[%clk 0:02:53]} 6. h3 {[%clk 0:02:58]}  Nbd7 {[%clk 0:02:37]} 7. Bd3 {[%clk 0:02:55]}  e5 {[%clk 0:02:36]} 8. d5 {[%clk 0:02:50]}  Nc5 {[%clk 0:02:32]} 9. Bc2 {[%clk 0:02:49]}  a5 {[%clk 0:02:31]} 10. g4 {[%clk 0:02:47]}  Nfd7 {[%clk 0:02:24]} 11. Bg5 {[%clk 0:02:37]}  f6 {[%clk 0:02:21]} 12. Bh4 {[%clk 0:02:36]}  Nb6 {[%clk 0:02:09]} 13. Qe2 {[%clk 0:02:25]}  c6 {[%clk 0:02:01]} 14. O-O-O {[%clk 0:02:19]}  Qc7 {[%clk 0:01:58]} 15. Kb1 {[%clk 0:02:13]}  cxd5 {[%clk 0:01:57]} 16. Nb5 {[%clk 0:02:04]}  Qe7 {[%clk 0:01:47]} 17. cxd5 {[%clk 0:02:03]}  Bd7 {[%clk 0:01:42]} 18. Rc1 {[%clk 0:01:56]}  Rfc8 {[%clk 0:01:40]} 19. Nd2 {[%clk 0:01:48]}  Qe8 {[%clk 0:01:37]} 20. Nxd6 {[%clk 0:01:47]}  Qe7 {[%clk 0:01:22]} 21. Nxc8 {[%clk 0:01:45]}  Rxc8 {[%clk 0:01:23]} 22. f3 {[%clk 0:01:34]}  Qd6 {[%clk 0:01:21]} 23. Bf2 {[%clk 0:01:32]}  a4 {[%clk 0:00:55]} 24. a3 {[%clk 0:01:29]}  Kh8 {[%clk 0:00:40]} 25. h4 {[%clk 0:01:28]}  f5 {[%clk 0:00:38]} 26. h5 {[%clk 0:01:23]}  fxg4 {[%clk 0:00:32]} 27. hxg6 {[%clk 0:01:21]}  Qxg6 {[%clk 0:00:30]} 28. Rcg1 {[%clk 0:01:15]}  Nb3 {[%clk 0:00:14]} 29. Nxb3 {[%clk 0:01:09]}  axb3 {[%clk 0:00:15]} 30. Bxb3 {[%clk 0:01:09]}  Na4 {[%clk 0:00:09]} 31. Bxa4 {[%clk 0:00:59]}  Bxa4 {[%clk 0:00:08]} 32. Rxg4 {[%clk 0:00:59]}  Qd6 {[%clk 0:00:04]} 33. Rhg1 {[%clk 0:00:44]}  Bf6 {[%clk 0:00:03]} 34. Qc4 {[%clk 0:00:40]} 1-0


[Site "https://www.chess.com"]

[Event "Titled Tuesday Blitz October 11 Late 2022"]
[White "Jaracz, Pawel"]
[Black "Lazavik, Denis"]
[WhiteFideId "1102222"]
[BlackFideId "13515110"]
[WhiteElo "2459"]
[BlackElo "2437"]
[Result "0-1"]
[Round "02"]
[TimeControl "180+1"]
[Date "2022.10.11"]
[WhiteClock "0:00:53"]
[BlackClock "0:00:07"]

1. e4 {[%clk 0:03:00]}  c5 {[%clk 0:03:00]} 2. Nf3 {[%clk 0:03:00]}  e6 {[%clk 0:03:00]} 3. d4 {[%clk 0:03:00]}  cxd4 {[%clk 0:03:01]} 4. Nxd4 {[%clk 0:03:00]}  Nc6 {[%clk 0:03:02]} 5. Nc3 {[%clk 0:02:59]}  Qc7 {[%clk 0:03:02]} 6. Be2 {[%clk 0:02:58]}  Nf6 {[%clk 0:03:02]} 7. O-O {[%clk 0:02:58]}  a6 {[%clk 0:03:01]} 8. Be3 {[%clk 0:02:57]}  Be7 {[%clk 0:03:00]} 9. f4 {[%clk 0:02:55]}  d6 {[%clk 0:03:01]} 10. Qe1 {[%clk 0:02:55]}  O-O {[%clk 0:03:00]} 11. Qg3 {[%clk 0:02:55]}  Nxd4 {[%clk 0:02:56]} 12. Bxd4 {[%clk 0:02:55]}  b5 {[%clk 0:02:55]} 13. a3 {[%clk 0:02:54]}  Bb7 {[%clk 0:02:54]} 14. Rae1 {[%clk 0:02:53]}  Bc6 {[%clk 0:02:52]} 15. Bd3 {[%clk 0:02:34]}  Qb7 {[%clk 0:02:50]} 16. Qh3 {[%clk 0:02:29]}  Nd7 {[%clk 0:02:11]} 17. Nd5 {[%clk 0:02:23]}  Nc5 {[%clk 0:01:07]} 18. Qg4 {[%clk 0:02:09]}  g6 {[%clk 0:00:48]} 19. Nf6+ {[%clk 0:02:06]}  Bxf6 {[%clk 0:00:48]} 20. Bxf6 {[%clk 0:02:07]}  Nd7 {[%clk 0:00:43]} 21. Bc3 {[%clk 0:02:03]}  Rae8 {[%clk 0:00:20]} 22. Qh4 {[%clk 0:01:53]}  f5 {[%clk 0:00:12]} 23. Qh6 {[%clk 0:01:46]}  Nc5 {[%clk 0:00:10]} 24. exf5 {[%clk 0:01:41]}  Nxd3 {[%clk 0:00:09]} 25. fxg6 {[%clk 0:01:03]}  Nxe1 {[%clk 0:00:08]} 26. Qg5 {[%clk 0:01:04]}  e5 {[%clk 0:00:07]} 27. f5 {[%clk 0:00:53]}  Qg7 {[%clk 0:00:07]} 28. f6 {[%clk 0:00:53]}  Qxg6 {[%clk 0:00:07]} 0-1


[Site "https://www.chess.com"]

[Event "Titled Tuesday Blitz October 11 Late 2022"]
[White "Jobava, Baadur"]
[Black "Goryachkina, Aleksandra"]
[WhiteFideId "13601520"]
[BlackFideId "4147103"]
[WhiteElo "2582"]
[BlackElo "2484"]
[Result "1-0"]
[Round "02"]
[TimeControl "180+1"]
[Date "2022.10.11"]
[WhiteClock "0:00:48"]
[BlackClock "0:00:08"]

1. b3 {[%clk 0:03:00]}  d5 {[%clk 0:02:59]} 2. Bb2 {[%clk 0:03:01]}  c6 {[%clk 0:02:59]} 3. d3 {[%clk 0:03:01]}  Nf6 {[%clk 0:02:54]} 4. Nd2 {[%clk 0:03:02]}  g6 {[%clk 0:02:50]} 5. e4 {[%clk 0:03:01]}  Bg7 {[%clk 0:02:49]} 6. Ngf3 {[%clk 0:03:01]}  O-O {[%clk 0:02:48]} 7. e5 {[%clk 0:03:00]}  Nfd7 {[%clk 0:02:46]} 8. h4 {[%clk 0:03:01]}  Qc7 {[%clk 0:02:41]} 9. Qe2 {[%clk 0:02:59]}  c5 {[%clk 0:02:34]} 10. h5 {[%clk 0:02:56]}  Nc6 {[%clk 0:02:32]} 11. hxg6 {[%clk 0:02:52]}  hxg6 {[%clk 0:02:31]} 12. O-O-O {[%clk 0:02:34]}  Ndxe5 {[%clk 0:02:29]} 13. Nxe5 {[%clk 0:01:46]}  Nxe5 {[%clk 0:02:29]} 14. Kb1 {[%clk 0:01:39]}  d4 {[%clk 0:02:12]} 15. Ne4 {[%clk 0:01:34]}  a5 {[%clk 0:02:10]} 16. f4 {[%clk 0:01:21]}  Bg4 {[%clk 0:01:55]} 17. Qe1 {[%clk 0:01:21]}  Bxd1 {[%clk 0:01:52]} 18. fxe5 {[%clk 0:01:22]}  Bh5 {[%clk 0:01:38]} 19. Qh4 {[%clk 0:01:21]}  Qxe5 {[%clk 0:01:17]} 20. g4 {[%clk 0:01:21]}  f5 {[%clk 0:01:11]} 21. gxh5 {[%clk 0:01:21]}  fxe4 {[%clk 0:01:08]} 22. hxg6 {[%clk 0:01:22]}  Rf4 {[%clk 0:00:59]} 23. Qh7+ {[%clk 0:01:22]}  Kf8 {[%clk 0:00:59]} 24. dxe4 {[%clk 0:01:23]}  Qxe4 {[%clk 0:00:47]} 25. Bd3 {[%clk 0:01:09]}  Qe5 {[%clk 0:00:39]} 26. Bc1 {[%clk 0:01:09]}  Rf3 {[%clk 0:00:16]} 27. Bh6 {[%clk 0:00:55]}  Bxh6 {[%clk 0:00:10]} 28. Qxh6+ {[%clk 0:00:56]}  Ke8 {[%clk 0:00:10]} 29. Qh8+ {[%clk 0:00:48]}  Qxh8 {[%clk 0:00:08]} 30. Rxh8+ {[%clk 0:00:49]}  Rf8 {[%clk 0:00:08]} 31. Bb5+ {[%clk 0:00:48]} 1-0


[Site "https://www.chess.com"]

[Event "Titled Tuesday Blitz October 11 Late 2022"]
[White "Kaganskiy, Gleb"]
[Black "Reprintsev, Alexander"]
[WhiteFideId "4132025"]
[BlackFideId "14100541"]
[WhiteElo "2165"]
[BlackElo "2230"]
[Result "0-1"]
[Round "02"]
[TimeControl "180+1"]
[Date "2022.10.12"]
[WhiteClock "0:00:06"]
[BlackClock "0:00:46"]

1. e4 {[%clk 0:02:52]}  d5 {[%clk 0:02:59]} 2. exd5 {[%clk 0:02:52]}  Qxd5 {[%clk 0:02:58]} 3. Nc3 {[%clk 0:02:52]}  Qa5 {[%clk 0:02:55]} 4. d4 {[%clk 0:02:51]}  Nf6 {[%clk 0:02:55]} 5. Nf3 {[%clk 0:02:52]}  Nc6 {[%clk 0:02:55]} 6. d5 {[%clk 0:02:35]}  Nb4 {[%clk 0:02:54]} 7. Bc4 {[%clk 0:02:31]}  e6 {[%clk 0:02:48]} 8. dxe6 {[%clk 0:02:28]}  Bxe6 {[%clk 0:02:49]} 9. Bxe6 {[%clk 0:02:27]}  fxe6 {[%clk 0:02:50]} 10. O-O {[%clk 0:02:24]}  Bd6 {[%clk 0:02:50]} 11. Qe2 {[%clk 0:02:16]}  Qf5 {[%clk 0:02:46]} 12. Nd4 {[%clk 0:02:07]}  Qe5 {[%clk 0:02:45]} 13. Qxe5 {[%clk 0:02:06]}  Bxe5 {[%clk 0:02:45]} 14. Nxe6 {[%clk 0:02:05]}  Nxc2 {[%clk 0:02:37]} 15. Rb1 {[%clk 0:01:58]}  Kf7 {[%clk 0:02:35]} 16. Ng5+ {[%clk 0:01:55]}  Kg6 {[%clk 0:02:35]} 17. Nge4 {[%clk 0:01:45]}  Rad8 {[%clk 0:02:25]} 18. Nxf6 {[%clk 0:01:43]}  Bxf6 {[%clk 0:02:22]} 19. Bf4 {[%clk 0:01:37]}  c6 {[%clk 0:02:21]} 20. Ne4 {[%clk 0:01:34]}  Rhe8 {[%clk 0:02:14]} 21. Nxf6 {[%clk 0:01:31]}  gxf6 {[%clk 0:02:13]} 22. Rbd1 {[%clk 0:01:22]}  Nd4 {[%clk 0:02:09]} 23. Bc7 {[%clk 0:01:17]}  Rd5 {[%clk 0:02:06]} 24. Rfe1 {[%clk 0:00:57]}  Re2 {[%clk 0:01:49]} 25. Bb8 {[%clk 0:00:44]}  Rxb2 {[%clk 0:01:23]} 26. Bxa7 {[%clk 0:00:41]}  Nc2 {[%clk 0:01:21]} 27. Rxd5 {[%clk 0:00:36]}  cxd5 {[%clk 0:01:21]} 28. Rd1 {[%clk 0:00:30]}  Rxa2 {[%clk 0:01:20]} 29. Bc5 {[%clk 0:00:24]}  Ra1 {[%clk 0:01:19]} 30. Rxa1 {[%clk 0:00:21]}  Nxa1 {[%clk 0:01:20]} 31. Kf1 {[%clk 0:00:20]}  Nb3 {[%clk 0:01:17]} 32. Bb6 {[%clk 0:00:17]}  Kf5 {[%clk 0:01:16]} 33. Ke2 {[%clk 0:00:17]}  Ke5 {[%clk 0:01:14]} 34. Kd3 {[%clk 0:00:16]}  Kd6 {[%clk 0:01:07]} 35. g4 {[%clk 0:00:10]}  Nc5+ {[%clk 0:01:06]} 36. Kd4 {[%clk 0:00:08]}  Ne6+ {[%clk 0:01:03]} 37. Ke3 {[%clk 0:00:06]}  Kc6 {[%clk 0:01:03]} 38. Ba7 {[%clk 0:00:06]}  b6 {[%clk 0:01:03]} 39. f4 {[%clk 0:00:05]}  Kb7 {[%clk 0:00:59]} 40. Bxb6 {[%clk 0:00:06]}  Kxb6 {[%clk 0:00:59]} 41. f5 {[%clk 0:00:05]}  Nd8 {[%clk 0:00:46]} 42. Kd4 {[%clk 0:00:06]}  Kc6 {[%clk 0:00:46]} 43. h4 {[%clk 0:00:06]}  Nf7 {[%clk 0:00:46]} 0-1


[Site "https://www.chess.com"]

[Event "Titled Tuesday Blitz October 11 Late 2022"]
[White "Kavutskiy, Konstantin"]
[Black "De Souza, Cristiano Gomes"]
[WhiteFideId "2026384"]
[BlackFideId "2151758"]
[WhiteElo "2338"]
[BlackElo "2068"]
[Result "0-1"]
[Round "02"]
[TimeControl "180+1"]
[Date "2022.10.12"]
[WhiteClock "0:00:06"]
[BlackClock "0:00:15"]

1. d4 {[%clk 0:03:00]}  Nf6 {[%clk 0:02:57]} 2. c4 {[%clk 0:03:00]}  g6 {[%clk 0:02:57]} 3. Nc3 {[%clk 0:02:54]}  d6 {[%clk 0:02:57]} 4. e4 {[%clk 0:02:54]}  Bg7 {[%clk 0:02:57]} 5. h3 {[%clk 0:02:54]}  O-O {[%clk 0:02:56]} 6. Be3 {[%clk 0:02:55]}  Nbd7 {[%clk 0:02:55]} 7. g4 {[%clk 0:02:53]}  e5 {[%clk 0:02:54]} 8. d5 {[%clk 0:02:54]}  Nc5 {[%clk 0:02:54]} 9. f3 {[%clk 0:02:54]}  a5 {[%clk 0:02:54]} 10. Qd2 {[%clk 0:02:54]}  h5 {[%clk 0:02:53]} 11. Nge2 {[%clk 0:02:54]}  Bd7 {[%clk 0:02:49]} 12. Nc1 {[%clk 0:02:53]}  a4 {[%clk 0:02:44]} 13. Nd3 {[%clk 0:02:53]}  Nxd3+ {[%clk 0:02:44]} 14. Bxd3 {[%clk 0:02:54]}  c6 {[%clk 0:02:40]} 15. O-O-O {[%clk 0:02:40]}  cxd5 {[%clk 0:02:37]} 16. cxd5 {[%clk 0:02:39]}  Qa5 {[%clk 0:02:33]} 17. Kb1 {[%clk 0:02:39]}  b5 {[%clk 0:02:31]} 18. Rc1 {[%clk 0:02:27]}  b4 {[%clk 0:02:29]} 19. Ne2 {[%clk 0:02:26]}  Rfc8 {[%clk 0:02:16]} 20. Rhg1 {[%clk 0:02:20]}  Kf8 {[%clk 0:02:10]} 21. Bh6 {[%clk 0:02:18]}  hxg4 {[%clk 0:01:58]} 22. hxg4 {[%clk 0:02:15]}  Rxc1+ {[%clk 0:01:53]} 23. Rxc1 {[%clk 0:02:16]}  b3 {[%clk 0:01:48]} 24. a3 {[%clk 0:01:54]}  Qxd2 {[%clk 0:01:44]} 25. Bxd2 {[%clk 0:01:55]}  Ke7 {[%clk 0:01:43]} 26. Bb4 {[%clk 0:01:53]}  Rh8 {[%clk 0:01:33]} 27. Bd2 {[%clk 0:01:48]}  Rh3 {[%clk 0:01:30]} 28. Ng1 {[%clk 0:01:45]}  Rh2 {[%clk 0:01:28]} 29. Bg5 {[%clk 0:01:39]}  Ke8 {[%clk 0:00:59]} 30. Rd1 {[%clk 0:01:28]}  Nh7 {[%clk 0:00:56]} 31. Be3 {[%clk 0:01:26]}  Bh6 {[%clk 0:00:50]} 32. Bxh6 {[%clk 0:01:23]}  Rxh6 {[%clk 0:00:50]} 33. Ne2 {[%clk 0:01:24]}  Rh3 {[%clk 0:00:45]} 34. Rf1 {[%clk 0:01:23]}  Ng5 {[%clk 0:00:44]} 35. Ng1 {[%clk 0:01:22]}  Rg3 {[%clk 0:00:40]} 36. Kc1 {[%clk 0:01:19]}  Ke7 {[%clk 0:00:39]} 37. Kd1 {[%clk 0:01:18]}  Rg2 {[%clk 0:00:38]} 38. Be2 {[%clk 0:01:14]}  f5 {[%clk 0:00:33]} 39. gxf5 {[%clk 0:01:12]}  gxf5 {[%clk 0:00:33]} 40. exf5 {[%clk 0:00:36]}  Bxf5 {[%clk 0:00:31]} 41. Kc1 {[%clk 0:00:37]}  Nh7 {[%clk 0:00:21]} 42. Kd2 {[%clk 0:00:36]}  Nf6 {[%clk 0:00:19]} 43. Kc3 {[%clk 0:00:31]}  Nxd5+ {[%clk 0:00:19]} 44. Kd2 {[%clk 0:00:30]}  Nf4 {[%clk 0:00:19]} 45. Ke3 {[%clk 0:00:30]}  Bd7 {[%clk 0:00:17]} 46. Re1 {[%clk 0:00:22]}  d5 {[%clk 0:00:16]} 47. Kd2 {[%clk 0:00:06]}  Bb5 {[%clk 0:00:14]} 48. Ke3 {[%clk 0:00:06]}  Bxe2 {[%clk 0:00:12]} 49. Nxe2 {[%clk 0:00:05]}  Rxe2+ {[%clk 0:00:13]} 50. Rxe2 {[%clk 0:00:05]}  Nxe2 {[%clk 0:00:13]} 51. Kxe2 {[%clk 0:00:05]}  Kf6 {[%clk 0:00:14]} 52. Ke3 {[%clk 0:00:06]}  Kf5 {[%clk 0:00:14]} 53. Kd3 {[%clk 0:00:06]}  Kf4 {[%clk 0:00:15]} 0-1


[Site "https://www.chess.com"]